Cogmind - Beta 17.1 @@@ ROGUE MODE // 2026.09.02 @ 22:24:20 Player: lavinia Result: Destroyed by G-34 Mercenary with Small Laser Performance ------------- Evolutions (0) 0 Regions Visited (1) 200 Robots Destroyed (15) 75 Value Destroyed (223) 223 Prototype IDs (0) 0 Alien Tech Used (0) 0 Bonus (0) 0 TOTAL SCORE: 498 Bonus ------- None Cogmind --------- Core Integrity 0/250 Matter 251/300 Energy 100/100 System Corruption 0% Temperature Cool (17) Movement Core (50) Location -10/Materials Parts ------- > --- POWER (1) -------- (None) > --- PROPULSION (2) --- (None) > --- UTILITY (2) ------ (None) > --- WEAPON (2) ------- Light Assault Rifle > --- INVENTORY (5) ---- Improved Terrain Scanner Peak State ------------ > --- POWER ------------ Light Nuclear Core > --- PROPULSION ------- Wheel > --- UTILITY ---------- Improved Terrain Scanner Seismic Detector > --- WEAPON ----------- EM Pulse Gun Light Assault Rifle > --- INVENTORY -------- Improved Terrain Scanner Grenade Launcher [Rating: 10] Favorites ----------- Power Ion Engine Engine Ion Engine Power Core Light Nuclear Core Propulsion Wheel Wheel Wheel Utility Seismic Detector Device Seismic Detector Storage Small Storage Unit Weapon Light Assault Rifle Energy Gun EM Pulse Gun Ballistic Gun Light Assault Rifle Launcher Grenade Launcher Special Weapon Mining Laser Build | -11 -10 ------- Run | Yrd Mat Slots Evolved . | . . Power . | . . Propulsion . | . . Utility . | . . Weapon . | . . Parts Attached 11 | 9 2 Power 2 | 1 1 Engine 1 | 1 . Core 1 | . 1 Reactor . | . . Propulsion 2 | 2 . Treads . | . . Leg . | . . Wheel 2 | 2 . Hover . | . . Flight . | . . Utility 3 | 3 . Device 2 | 2 . Storage 1 | 1 . Processor . | . . Hackware . | . . Protection . | . . Artifact . | . . Weapon 4 | 3 1 Energy Gun 1 | 1 . Energy Cannon . | . . Ballistic Gun 1 | 1 . Ballistic Cannon . | . . Launcher 1 | . 1 Special Weapon 1 | 1 . Impact Weapon . | . . Slashing Weapon . | . . Piercing Weapon . | . . Special Melee Weapon . | . . Unidentified Prototypes . | . . Parts Lost 7 | . 7 Power 1 | . 1 Propulsion 2 | . 2 Utility 2 | . 2 Weapon 2 | . 2 Highest Loss Streak 7 | . 7 To Critical Strikes . | . . Average Backups 1 | . 1 Power . | . . Propulsion . | . . Utility . | . 1 Weapon . | . . Tool/Special . | . . Unused Backups 1 | . 1 Power . | . . Propulsion . | . . Utility 1 | . 1 Weapon . | . . Tool/Special . | . . Average Slot Usage (%) 87 | . 87 Engine 10 | . 10 Core 2 | . 2 Wheel 21 | . 21 Device 24 | . 24 Energy Gun 11 | . 11 Ballistic Gun 14 | . 14 Peak Build Rating 10 | 9 10 Average Rating 7 | 7 8 On Entrance 4 | . 9 Avg Prop Armor Cover (%) . | . . Naked Turns . | . . Heaviest Build 13 | 13 10 Greatest Support 20 | 20 20 Greatest Overweight (x) . | . . Average Overweight (x) . | . . Largest Inventory Capacity 8 | 8 5 Average Capacity 5 | 6 5 Most Carried 2 | 1 2 Average Carried 1 | . 1 Final Capacity 5 | 5 5 Final Carried 1 | 1 1 Class Distribution -------------------- 100% | Mutant Dominant Class ---------------- Mutant | -10/Materials Resources | -11 -10 ----------- Run | Yrd Mat Matter Collected 342 | 323 19 Remotely . | . . Salvage Created 426 | 269 157 Parts 40 | 31 9 Haulers Intercepted . | . . Recyclers Shooed . | . . Parts Field Recycled . | . . Retrieved Matter . | . . Parts Self-Destructed . | . . Prevented . | . . Parts Restored . | . . Kills | -11 -10 ------- Run | Yrd Mat Combat Hostiles Destroyed 4 | . 4 Guns 3 | . 3 AOE 1 | . 1 Classes Destroyed 4 | 3 1 Worker 2 | 2 . Tunneler 8 | 8 . Recycler 1 | 1 . Grunt 4 | . 4 Best Kill Streak 7 | 7 3 Combat Bots Only 3 | . 3 Max Kills in Single Turn 1 | 1 1 Gunslinging . | . . Exploded 1 | . 1 Melee . | . . Uniques/NPCs Destroyed . | . . Combat | -11 -10 -------- Run | Yrd Mat Hostile Shots Fired 77 | . 77 Missed 20 | . 20 Hits 57 | . 57 Projectile 57 | . 57 Critical Strikes 1 | . 1 Damage Taken 656 | . 656 Core 252 | . 252 Absorbed by Shields . | . . Core Remaining (%) 100 | 100 . Volleys Fired 64 | 31 33 Largest 2 | 2 2 Hottest 100 | 100 60 Shots Fired 107 | 59 48 Gun 100 | 56 44 Cannon . | . . Launcher 4 | . 4 Special 3 | 3 . Kinetic 61 | 28 33 Thermal 3 | 3 . Explosive 4 | . 4 Electromagnetic 39 | 28 11 Robot Hit Streak 10 | 9 10 Robot Miss Streak 6 | 6 2 Penetration Max . | . . Secondary Targets 1 | . 1 Max Gunslinging Chain 1 | . 1 Shots Hit Robots 57 | 30 27 Core Hits 29 | 14 15 Critical Kills 1 | 1 . Critical Parts Destroyed . | . . Critical Strikes 1 | 1 . Destroy 1 | 1 . Melee Attacks . | . . Impact . | . . Slashing . | . . Piercing . | . . Sneak Attacks . | . . Combat Hostiles . | . . Follow-up Attacks . | . . Damage Inflicted 869 | 405 464 Guns 567 | 289 278 Cannons . | . . Explosions 230 | 44 186 Melee . | . . Ramming . | . . Kinetic 257 | 89 168 Thermal 116 | 116 . Explosive 186 | . 186 Electromagnetic 310 | 200 110 Impact . | . . Slashing . | . . Piercing . | . . Highest Corruption . | . . Average Corruption . | . . Corruption Purged . | . . Corruption Blocked . | . . Overload Shots . | . . Overflow Damage 31 | 31 . Projectiles 8 | 8 . Explosions 23 | 23 . Melee . | . . Knockbacks . | . . Impact . | . . Kinetic . | . . Secondary . | . . Self-Inflicted Damage 9 | . 9 Shots 1 | . 1 Rammed . | . . Targets Rammed . | . . Kicked . | . . Crushed . | . . Highest Temperature 183 | 40 183 Average Temperature 53 | 19 84 Received Heat Transfer 381 | . 381 Siege Activations . | . . Martial Activations . | . . Shielding Activations . | . . Robots Disrupted . | . . Combat Hostiles . | . . Robots Corrupted . | . . Combat Hostiles . | . . Parts Fried 1 | 1 . Impact Corruptions . | . . Robots Melted . | . . Combat Hostiles . | . . Parts Melted . | . . Heat Transferred 200 | 200 . Parts Sabotaged . | . . Parts Stolen . | . . Parts Stripped . | . . Power Chain Reactions 1 | 1 . Alert | -11 -10 ------- Run | Yrd Mat Maximum Alert Level . | . . Low Security (%) 100 | 100 100 Level 1 . | . . Level 2 . | . . Level 3 . | . . Level 4 . | . . Level 5 . | . . High Security . | . . Max Security . | . . Peak Influence 67 | 15 67 Initial 3 | . 3 Average 7 | 2 14 Influence Increases 192 | 55 137 Destroy 0b10 Robot/C 80 | . 80 Destroy 0b10 Robot/NC 55 | 55 . Destroy Leader 20 | . 20 Disable Machine 15 | . 15 Destroy Structure 22 | . 22 Influence Decreases 155 | 50 105 Entered New Map 2 | . 2 Time Decay 83 | 50 33 Lost Part 70 | . 70 Squads Dispatched 3 | . 3 Investigation 2 | . 2 Extermination . | . . Reinforcement 1 | . 1 Assault . | . . Garrison . | . . Intercept . | . . Searches Triggered . | . . Construction Impeded . | . . Haulers Reinforced . | . . Active Scanning Responses . | . . Cargo Convoy Interrupts . | . . Stealth | -11 -10 --------- Run | Yrd Mat Distress Signals . | . . Communications Jammed . | . . Distress Signals . | . . Times Spotted 7 | . 7 Peak Tracking Total 4 | . 4 Tactical Retreats . | . . Traps | -11 -10 ------- Run | Yrd Mat Traps Triggered . | . . Indirectly . | . . Trap Hack Attempts . | . . Triggered . | . . Disarmed . | . . Reprogrammed . | . . Reused . | . . Traps Extracted . | . . Installed . | . . Triggered . | . . Machines | -11 -10 ---------- Run | Yrd Mat Machines Disabled 1 | . 1 Max in Single Turn 1 | . 1 Machines Repaired . | . . Machines Dismantled . | . . Machines Sabotaged . | . . Overloaded Fab Kills . | . . Hacking | -11 -10 --------- Run | Yrd Mat Machines Accessed 1 | . 1 Terminals 1 | . 1 Fabricators . | . . Repair Stations . | . . Recycling Units . | . . Scanalyzers . | . . Garrison Access . | . . Total Hacks 5 | . 5 Successful 1 | . 1 Failed 4 | . 4 Catastrophic 2 | . 2 Database Lockouts . | . . Manual . | . . Terminals 5 | . 5 Fabricators . | . . Repair Stations . | . . Recycling Units . | . . Scanalyzers . | . . Garrison Access . | . . Terminal Hacks 1 | . 1 Locate Traps 1 | . 1 Fabricator Hacks . | . . Repair Station Hacks . | . . Recycling Unit Hacks . | . . Scanalyzer . | . . Garrison Access Hacks . | . . Unauthorized Hacks . | . . Terminals . | . . Fabricators . | . . Repair Stations . | . . Recycling Units . | . . Scanalyzers . | . . Garrison Access . | . . Data Cores Recovered . | . . Used . | . . Hacking Detections 1 | . 1 Full Trace Events 1 | . 1 Feedback Events . | . . Feedback Blocked . | . . Robot Schematics Acquired . | . . Robots Built . | . . Authchips . | . . Time . | . . Total Robot Build Rating . | . . Part Schematics Acquired . | . . Parts Built . | . . Authchips . | . . Time . | . . Total Part Build Rating . | . . Part Studies Acquired . | . . Parts Repaired . | . . Time . | . . Parts Recycled . | . . Recycled Matter . | . . Retrieved Matter . | . . Retrieved Components . | . . Parts Scanalyzed . | . . Part Schematics Acquired . | . . Parts Damaged . | . . Bothacking | -11 -10 ------------ Run | Yrd Mat Used RIF Installer . | . . Robots Hacked . | . . Non-combat . | . . Combat . | . . Robot Hacks Applied . | . . Relay Couplers Released . | . . Fabnet Peak Effective % . | . . Robots Rewired . | . . Allies Hacked . | . . Hacks Repelled . | . . Allies | -11 -10 -------- Run | Yrd Mat Total Allies . | . . Largest Group . | . . Highest-Rated Group . | . . Highest-Rated Ally . | . . Total Orders . | . . Ally Attacks . | . . Total Damage . | . . Kills . | . . Allies Corrupted . | . . Allies Melted . | . . Intel | -11 -10 ------- Run | Yrd Mat Active Infowar (turns) 322 | 141 181 Terrain 295 | 141 154 Seismic 309 | 128 181 Robot Analysis Total . | . . Derelict Logs Recovered . | . . Drone Launches . | . . Drone Recoveries . | . . Exploration | -11 -10 ------------- Run | Yrd Mat Turns Passed 415 | 222 193 Spaces Moved 190 | 143 47 Core 1 | 1 . Treads . | . . Legs . | . . Wheels 189 | 142 47 Hover . | . . Flight . | . . Fastest Speed 50 | 50 80 Average Speed 79 | 79 80 Slowest Speed 80 | 80 80 Overloaded Moves . | . . Propulsion Burnouts . | . . Robots Hopped . | . . Potential Cave-ins . | . . Cave-ins Triggered . | . . Exploration Rate (%) 8 | 5 11 Regions Visited 1 Branch Regions . Pre-discovered Areas . | . . Known Exits Taken . | . . Unknown Exits Taken 1 | 1 . Scrap Searched . | . . Spaces Dug . | . . Terrain Destroyed 29 | 2 27 Melee . | . . Projectile . | . . AOE 29 | 2 27 Terrain Rammed . | . . Walls Destroyed . | . . Machines Disabled . | . . Actions | -11 -10 --------- Run | Yrd Mat Total 348 | 187 161 Wait 77 | . 77 Move 189 | 142 47 Hop . | . . Pick Up 2 | 1 1 Fast Attach 11 | 10 1 Attach 1 | . 1 Detach . | . . Swap . | . . Drop 4 | 3 1 Fire 64 | 31 33 Melee . | . . Ram . | . . Kick . | . . Crush . | . . Escape Stasis . | . . Rewire . | . . Trap . | . . Miscellaneous . | . . Route ------- -11/Scrapyard -10/Materials History --------- Turn | Location | Event 2 | -11/Scrapyard | Met Revision 17 23 | -11/Scrapyard | Discovered new exit (range 15) 223 | -11/Scrapyard | Entered Materials 300 | -10/Materials | Build established: Mutant 395 | -10/Materials | Core integrity fell below 50% 411 | -10/Materials | Core integrity fell below 20% 416 | -10/Materials | Destroyed by G-34 Mercenary with Small Laser Last Messages --------------- 00356_ G-34 Mercenary destroyed. 00360_ Dropped Ion Engine. 00360_ Acquired Lgt. Nuclear Core. 00361_ Acquired 19 matter. 00366_ G-34 Mercenary destroyed. 00371_ K-01 Serf collects debris. 00371_ EM Pulse Gun destroyed. 00376_ K-01 Serf collects debris. 00377_ Imp. Terrain Scanner destroyed. 00380_ K-01 Serf collects debris. 00388_ Wheel destroyed. 00392_ G-34 Mercenary destroyed. 00392_ Grenade Launcher destroyed. 00394_ G-34 Mercenary destroyed. 00401_ The unstable cave ceiling collapses. 00404_ K-01 Serf collects debris. 00404_ Seismic Detector destroyed. 00407_ K-01 Serf collects debris. 00408_ Lgt. Nuclear Core destroyed. 00411_ K-01 Serf collects debris. Map ----- +----------------------------------------------------+ | ??????????????????????????????????????? | | ??????????????????????????????????????? | | ??????????????????????????????????????? | | ??????????????????????????????????????? | | ??????????????????????????????????????? | | ??????????????????????????????????????? | | ??????????????????????????????????????? | | ??????????????????????????????????????? | | ??????????????????????????????????????? | | ????????????????????????????????#?????? | | ?????? ???????????? ????#?????????#?? | | ?????# ?????????????????????????????? | | ???"?# ?????????????????????????????? | | ?????# #????????? ???######?#? ????#? | | ?????+ #???????#?????# #?#???????? | | ?????# #?????????????? ??? ??"???? | | ?????# +??????#???"???^ ?#???? ??? | | ?????# #????? ?????"?? ########### | | ?????# #??????????"???# ## #? | | ?????# #???????? ?????# ## #? | | ?????# #??????????????#%*## #? | | ?????# #??????????????#! ## #? | | ?????# #????????#????##a ##* !! #? | | ?????# ############### #=! !! #? | | ?????# " # %= !! #? | | ?????# g @ +%[ #? | | ?????# ############+## #= #? | | ?????#####?#?????? ? ##[[ ########? | | ??????????????? ??? ?!%% #???? | | ???????? ?? ???? ?? # g #???? | | ??????????????????? # !#??#? | | ????????#???#???? # #???# | | ?????????????????? # ! ! #???? | | ????????????????? # % #?#?? | | ?????#??????????? # #######??? | | ???????????????? ?######????????# | | ????????????????#######?#???#?????????? | | | | | | | | | | | | | | | | | | | | | | | | | | | +----------------------------------------------------+ Best States ------------- Heat Dissipation 25 Energy Generation 14 Energy Capacity 250 Matter Stores 300 Matter Capacity 300 Sight Range 16 Terrain Scan Range 16 Terrain Scan Density 10 Evasion (%) 44 Item Schematics ----------------- None Robot Schematics ------------------ None Fabricated ------------ Nothing Repaired ---------- Nothing Studied --------- None Alien Tech Used ----------------- None Achievements -------------- You Again Challenges ------------ None Game ------ Seed MassPhysicsRailgun Manual? 0 Play Time 00:11:30 Cumulative 13.6 hours Start 2026.09.02 @ 22:14:11 End 2026.09.02 @ 22:24:20 Sessions 1 Manual Loads 0 Difficulty Rogue Special Mode None Game No. 26 Rogue 26 Adventurer 0 Explorer 0 Win Type - Total 0 Types 0/0/0/0/0/0/0/0/0/0 Lore% 8 Gallery% 9 Achievement% 9 Wizard Run 0 Options --------- Layout 1 ASCII 0 Keyboard 0 Movement Mouse Keybinds 0 Fullscreen 1 Font 24/Smallcaps Map View 50x35 Zoom Use 0% Tactical HUD 1 Map Filters NONE Filters NONE Steam 1 RUN: 7c0a274f-f26b-489b-a47e-c0d4e8655483